Cogmind - Beta 10.2 @@@ ROGUE MODE // 2021.11.28 @ 20:55:40 Player: ApricotBot Result: Destroyed by Y-45 Defender with Heavy Assault Rifle Performance ------------- Evolutions (1) 500 Regions Visited (2) 400 Robots Destroyed (9) 45 Value Destroyed (204) 204 Prototype IDs (0) 0 Alien Tech Used (0) 0 Bonus (0) 0 TOTAL SCORE: 1149 Bonus ------- None Cogmind --------- Core Integrity 0/400 Matter 109/300 Energy 100/100 System Corruption 1% Temperature Cool (9) Movement Core (600) Ox11 Location -9/Materials Parts ------- > --- POWER (1) -------- (None) > --- PROPULSION (2) --- (None) > --- UTILITY (3) ------ High-capacity Storage Unit Utility Shielding > --- WEAPON (3) ------- Mace > --- INVENTORY (12) --- Heat Sink Small Storage Unit High-capacity Storage Unit Small Laser Improved Light Cannon Mini Grenade Launcher Peak State ------------ > --- POWER ------------ Light Ion Engine > --- PROPULSION ------- Compact Wheel Compact Wheel > --- UTILITY ---------- High-capacity Storage Unit Targeting Computer Utility Shielding > --- WEAPON ----------- Light Assault Rifle Improved Light Cannon Improved Light Cannon > --- INVENTORY -------- Light Ion Engine Heat Sink Small Storage Unit High-capacity Storage Unit Small Laser Mini Grenade Launcher [Rating: 11] Favorites ----------- Power Light Ion Engine Engine Light Ion Engine Propulsion Compact Wheel Wheel Compact Wheel Utility High-capacity Storage Unit Storage High-capacity Storage Unit Processor Targeting Computer Protection Utility Shielding Weapon Improved Light Cannon Ballistic Gun Light Assault Rifle Ballistic Cannon Improved Light Cannon Launcher Mini Grenade Launcher Impact Weapon Mace Build | -11 -10 -9 ------- Run | Scr Mat Mat Slots Evolved 2 | . . 2 Power . | . . . Propulsion . | . . . Utility 1 | . . 1 Weapon 1 | . . 1 Parts Attached 15 | 5 6 4 Power 2 | 1 . 1 Engine 2 | 1 . 1 Core . | . . . Reactor . | . . . Propulsion 2 | 2 . . Treads . | . . . Leg . | . . . Wheel 2 | 2 . . Hover . | . . . Flight . | . . . Utility 4 | 1 2 1 Device . | . . . Storage 2 | 1 1 . Processor 1 | . 1 . Hackware . | . . . Protection 1 | . . 1 Artifact . | . . . Weapon 7 | 1 4 2 Energy Gun . | . . . Energy Cannon . | . . . Ballistic Gun 2 | 1 . 1 Ballistic Cannon 3 | . 3 . Launcher 1 | . 1 . Special Weapon . | . . . Impact Weapon 1 | . . 1 Slashing Weapon . | . . . Piercing Weapon . | . . . Special Melee Weapon . | . . . Unidentified Prototypes . | . . . Parts Lost 6 | . . 6 Power 2 | . . 2 Propulsion 2 | . . 2 Utility 1 | . . 1 Weapon 1 | . . 1 Highest Loss Streak 6 | . . 6 Average Slot Usage (%) 89 | . 98 77 Engine 11 | . 14 8 Wheel 22 | . 28 14 Storage 12 | . 14 11 Processor 10 | . 12 8 Protection 4 | . . 11 Ballistic Gun 2 | . . 5 Ballistic Cannon 22 | . 27 14 Impact Weapon 1 | . . 3 Naked Turns . | . . . Heaviest Build 45 | 8 43 45 Greatest Support 32 | 32 32 32 Greatest Overweight (x) 11 | . 1 11 Average Overweight (x) . | . . 1 Largest Inventory Capacity 12 | 6 12 12 Average Capacity 11 | 5 11 12 Most Carried 8 | 2 8 7 Average Carried 5 | 1 5 6 Final Capacity 12 | 6 12 12 Final Carried 8 | 2 8 6 Class Distribution -------------------- 81% | Mutant 18% | Gunner Dominant Class ---------------- Mutant | -10/Materials Mutant | -9/Materials Resources | -11 -10 -9 ----------- Run | Scr Mat Mat Matter Collected 220 | 138 22 60 Remotely . | . . . Salvage Created 184 | . 124 60 Parts 13 | . 6 7 Haulers Intercepted . | . . . Recyclers Shooed . | . . . Parts Field Recycled . | . . . Retrieved Matter . | . . . Parts Self-Destructed . | . . . Prevented . | . . . Kills | -11 -10 -9 ------- Run | Scr Mat Mat Combat Hostiles Destroyed 7 | . 6 1 Melee 1 | . . 1 Cannons 3 | . 3 . AOE 3 | . 3 . Classes Destroyed 5 | . 4 1 Worker 1 | . 1 . Watcher 1 | . 1 . Swarmer 3 | . 3 . Grunt 3 | . 3 . Sentry 1 | . . 1 Best Kill Streak 3 | . 3 1 Combat Bots Only 3 | . 3 1 Max Kills in Single Turn 2 | . 2 1 Gunslinging . | . . . Exploded 2 | . 2 . Melee 1 | . . 1 Uniques/NPCs Destroyed . | . . . Combat | -11 -10 -9 -------- Run | Scr Mat Mat Damage Taken 1059 | . 61 998 Core 432 | . 25 407 Absorbed by Shields . | . . . Core Remaining (%) 95 | 100 90 . Volleys Fired 14 | . 13 1 Largest 3 | . 2 3 Hottest 98 | . 78 98 Shots Fired 29 | . 26 3 Gun 1 | . . 1 Cannon 26 | . 24 2 Launcher 2 | . 2 . Special . | . . . Kinetic 27 | . 24 3 Thermal . | . . . Explosive 2 | . 2 . Electromagnetic . | . . . Robot Hit Streak 3 | . 3 1 Robot Miss Streak 6 | . 6 1 Penetration Max . | . . . Secondary Targets . | . . . Shots Hit Robots 25 | . 11 14 Core Hits 13 | . 8 5 Critical Hits . | . . . Critical Kills . | . . . Critical Parts Destroyed . | . . . Melee Attacks 15 | . . 15 Impact 15 | . . 15 Slashing . | . . . Piercing . | . . . Sneak Attacks . | . . . Combat Hostiles . | . . . Follow-up Attacks . | . . . Damage Inflicted 738 | . 452 286 Guns 6 | . . 6 Cannons 258 | . 258 . Explosions 194 | . 194 . Melee 185 | . . 185 Ramming 95 | . . 95 Kinetic 264 | . 258 6 Thermal . | . . . Explosive 194 | . 194 . Electromagnetic . | . . . Impact 185 | . . 185 Slashing . | . . . Piercing . | . . . Highest Corruption 1 | . 1 1 Average Corruption 1 | . 1 1 Corruption Purged . | . . . Effects 1 | . . 1 Targeting Errors 1 | . . 1 Overload Shots . | . . . Overflow Damage . | . . . Projectiles . | . . . Explosions . | . . . Melee . | . . . Knockbacks 1 | . 1 . Impact . | . . . Kinetic 1 | . 1 . Secondary . | . . . Self-Inflicted Damage 44 | . . 44 Shots . | . . . Rammed 12 | . . 12 Targets Rammed 12 | . . 12 Kicked . | . . . Crushed . | . . . Highest Temperature 66 | . 66 45 Average Temperature 24 | . 24 28 Received Heat Transfer 321 | . 24 297 Siege Activations . | . . . Robots Corrupted . | . . . Combat Hostiles . | . . . Parts Fried . | . . . Impact Corruptions . | . . . Robots Melted . | . . . Combat Hostiles . | . . . Parts Melted . | . . . Heat Transferred . | . . . Parts Sabotaged . | . . . Parts Stolen . | . . . Parts Stripped . | . . . Power Chain Reactions . | . . . Missiles Intercepted . | . . . Alert | -11 -10 -9 ------- Run | Scr Mat Mat Peak Influence 172 | . 172 117 Initial 72 | . . 72 Average 62 | . 48 94 Maximum Alert Level . | . . . Low Security (%) 100 | 100 100 100 Level 1 . | . . . Level 2 . | . . . Level 3 . | . . . Level 4 . | . . . Level 5 . | . . . High Security . | . . . Max Security . | . . . Squads Dispatched . | . . . Investigation . | . . . Extermination . | . . . Reinforcement . | . . . Assault . | . . . Garrison . | . . . Intercept . | . . . Construction Impeded . | . . . Haulers Reinforced . | . . . Stealth | -11 -10 -9 --------- Run | Scr Mat Mat Distress Signals . | . . . Communications Jammed . | . . . Distress Signals . | . . . Times Spotted 13 | . 8 5 Peak Tracking Total 4 | . 3 4 Tactical Retreats . | . . . Traps | -11 -10 -9 ------- Run | Scr Mat Mat Traps Triggered 1 | . 1 . Indirectly . | . . . Trap Hack Attempts . | . . . Triggered . | . . . Disarmed . | . . . Reprogrammed . | . . . Reused . | . . . Traps Extracted . | . . . Installed . | . . . Triggered . | . . . Machines | -11 -10 -9 ---------- Run | Scr Mat Mat Machines Disabled 1 | . . 1 Max in Single Turn 1 | . . 1 Machines Sabotaged . | . . . Garrisons Compromised . | . . . Overloaded Fab Kills . | . . . Fab Network Shutdowns . | . . . Hacking | -11 -10 -9 --------- Run | Scr Mat Mat Machines Accessed . | . . . Terminals . | . . . Fabricators . | . . . Repair Stations . | . . . Recycling Units . | . . . Scanalyzers . | . . . Garrison Access . | . . . Total Hacks . | . . . Successful . | . . . Failed . | . . . Catastrophic . | . . . Database Lockouts . | . . . Manual . | . . . Terminals . | . . . Fabricators . | . . . Repair Stations . | . . . Recycling Units . | . . . Scanalyzers . | . . . Garrison Access . | . . . Terminal Hacks . | . . . Fabricator Hacks . | . . . Repair Station Hacks . | . . . Recycling Unit Hacks . | . . . Scanalyzer . | . . . Garrison Access Hacks . | . . . Unauthorized Hacks . | . . . Terminals . | . . . Fabricators . | . . . Repair Stations . | . . . Recycling Units . | . . . Scanalyzers . | . . . Garrison Access . | . . . Data Cores Recovered . | . . . Used . | . . . Hacking Detections . | . . . Full Trace Events . | . . . Feedback Events . | . . . Feedback Blocked . | . . . Robot Schematics Acquired . | . . . Robots Built . | . . . Matter . | . . . Time . | . . . Total Robot Build Rating . | . . . Part Schematics Acquired . | . . . Parts Built . | . . . Matter . | . . . Time . | . . . Total Part Build Rating . | . . . Parts Repaired . | . . . Time . | . . . Parts Recycled . | . . . Recycled Matter . | . . . Retrieved Matter . | . . . Retrieved Components . | . . . Parts Scanalyzed . | . . . Part Schematics Acquired . | . . . Parts Damaged . | . . . Bothacking | -11 -10 -9 ------------ Run | Scr Mat Mat Used RIF Installer . | . . . Robots Hacked . | . . . Non-combat . | . . . Combat . | . . . Robot Hacks Applied . | . . . Relay Couplers Released . | . . . Robots Rewired . | . . . Allies Hacked . | . . . Hacks Repelled . | . . . Allies | -11 -10 -9 -------- Run | Scr Mat Mat Total Allies . | . . . Largest Group . | . . . Highest-Rated Group . | . . . Highest-Rated Ally . | . . . Total Orders . | . . . Ally Attacks . | . . . Total Damage . | . . . Kills . | . . . Allies Corrupted . | . . . Allies Melted . | . . . Intel | -11 -10 -9 ------- Run | Scr Mat Mat Robot Analysis Total . | . . . Derelict Logs Recovered . | . . . Drone Launches . | . . . Drone Recoveries . | . . . Exploration | -11 -10 -9 ------------- Run | Scr Mat Mat Turns Passed 698 | 55 381 262 Spaces Moved 480 | 47 291 142 Core 12 | 6 . 6 Treads . | . . . Legs . | . . . Wheels 468 | 41 291 136 Hover . | . . . Flight . | . . . Fastest Speed 50 | 50 100 110 Average Speed 113 | 93 108 132 Slowest Speed 600 | 100 110 600 Overloaded Moves . | . . . Propulsion Burnouts . | . . . Robots Hopped . | . . . Cave-ins Triggered . | . . . Exploration Rate (%) 17 | 3 38 11 Regions Visited 2 Branch Regions . Pre-discovered Areas . | . . . Known Exits Taken . | . . . Unknown Exits Taken 2 | 1 1 . Scrap Searched . | . . . Spaces Dug . | . . . Terrain Destroyed 14 | . 14 . Melee . | . . . Projectile 2 | . 2 . AOE 12 | . 12 . Terrain Rammed . | . . . Walls Destroyed . | . . . Machines Disabled . | . . . Actions | -11 -10 -9 --------- Run | Scr Mat Mat Total 577 | 58 329 190 Wait 24 | . 10 14 Move 478 | 46 290 142 Hop . | . . . Pick Up 17 | 7 9 1 Fast Attach . | . . . Attach 10 | 5 2 3 Detach . | . . . Swap 5 | . 4 1 Drop 2 | . 1 1 Fire 14 | . 13 1 Melee 15 | . . 15 Ram 12 | . . 12 Kick . | . . . Crush . | . . . Escape Stasis . | . . . Rewire . | . . . Trap . | . . . Miscellaneous . | . . . Route ------- -11/Scrapyard -10/Materials -9/Materials (discovered 1 exit: [*Sto]) History --------- Turn | Location | Event 27 | -11/Scrapyard | Discovered new exit (range 15) 56 | -11/Scrapyard | Entered Materials 310 | -10/Materials | Build established: Mutant 321 | -10/Materials | Discovered new exit (range 8) 437 | -10/Materials | Entered another Materials area 437 | -9/Materials | Evolved 2 slots: Utility x1, Weapon x1 512 | -9/Materials | Discovered new exit (range 16) 638 | -9/Materials | Core integrity fell below 50% 677 | -9/Materials | Lost 6 parts (2p2n1u1w) 683 | -9/Materials | Core integrity fell below 20% 699 | -9/Materials | Destroyed by Y-45 Defender with Heavy Assault Rifle Last Messages --------------- 00572_ Com. Wheel destroyed. 00589_ Slammed into Y-45 Defender. 00589_ Destabilizing: System interference. 00589_ Imp. Light Cannon temporarily disabled. 00590_ Slammed into Y-45 Defender. 00590_ Destabilizing: System interference. 00590_ Targeting Computer temporarily disabled. 00591_ Slammed into Y-45 Defender. 00592_ Destabilizing: System corrupted (+1). 00594_ Imp. Light Cannon destroyed. 00595_ Slammed into Y-45 Defender. 00596_ Destabilizing: Core damaged (-12). 00597_ Slammed into Y-45 Defender. 00607_ Lgt. Ion Engine destroyed. 00626_ Targeting Computer destroyed. 00627_ System corrupted: Mace targeting data glitched. 00632_ Y-45 Defender destroyed. 00634_ Acquired 60 matter. 00640_ Lgt. Ion Engine destroyed. 00646_ Com. Wheel destroyed. Map ----- +----------------------------------------------------+ | ??????????????????????????????????? | | ??????????????????????????????????? | | ??????????????????????????????????? | | ??????????????????????????????????? | | ??????????????????????????????????? | | ??????????????????????????????????? | | ??????????????????????????????????? | | ??????????????????????????????????? | | ??????????????????????????????????? | | ??????????????????????????????????? | | ??????????????????????????????????? | | ??????????????????????????????????? | | ??????????????????????????? ????? | | ??????????????????????????? ##??? | | ??????????????????????????? #??? | | ??????????????????????????? ??? | | ??????????????????????????? < ???? | | ??????########????????????? ???? | | ??????# #????????????? ???? | | ??????# #????????????# #???? | | ??????# """#????????????# #???? | | ??????# """#????????????# #???? | | ??????# [ """############## #???? | | ??????# Y # # #???? | | ??????####/### != # #???? | | ?????????#@## ! # #???? | | ?????????# ### / #???? | | ?????????# #?# # #???? | | ?????????# #?###+########## ##??? | | ?????????#!#???# #???????# #??? | | ?????????#=#???# #???????# #??? | | ?????????#g#???# #???????# #??? | | ?????????#b#???# ######### #??? | | ???????###=#???# #??? | | ???????# *g#???# ########### ###??? | | ???????# [##### #?????????? #????? | | ???????# #?????????? #????? | | ######## #######?????????? ????? | | # =## ## ?????????? ????? | | # ## ## """"?????????? ???? | | # ## ## """""????????? ???? | | # """ # # """""????????? ???? | | # """ # # """"" #????????###??? | | # """ + + """"" #?????????????? | | # # # """"" #?????????????? | | # """ # # """"" #?????????????? | | # """ ## ## #?????????????? | | # """ ## ## #?????????????? | | # ## ## #?????????????? | | ? ## ##########?????????????? | +----------------------------------------------------+ Best States ------------- Heat Dissipation 28 Energy Generation 10 Energy Capacity 125 Matter Stores 188 Matter Capacity 300 Sight Range 16 Terrain Scan Density 10 Utility Shielding 33 Evasion (%) 40 Targeting Accuracy 5 Item Schematics ----------------- None Robot Schematics ------------------ None Fabricated ------------ Nothing Alien Tech Used ----------------- None Achievements -------------- None Challenges ------------ None Game ------ Seed InsulatedStasisLeg Manual? 0 Play Time 00:10:18 Cumulative 8.5 hours Start 2021.11.28 @ 20:47:41 End 2021.11.28 @ 20:55:40 Sessions 1 Manual Loads 0 Difficulty Rogue Special Mode None Game No. 22 Rogue 16 Adventurer 6 Explorer 0 Win Type - Total 0 Types 0/0/0/0/0/0/0/0/0 Lore% 4 Gallery% 21 Achievement% 14 Wizard Run 0 Options --------- ASCII 0 Keyboard 0 Movement Mouse Keybinds 0 Fullscreen 1 Font 18/TerminusBold Map View 76x50 Tactical HUD 1 Map Filters NONE Filters NONE Steam 1 RUN: 5d1c7545-a7fc-40c3-be35-8870fea6fbd3